fUST/lending_fUST_20260403
["ID","MTS","AMOUNT","RATE_DAILY","PERIOD"]
[419322055,1775161849803,-404.819331,0.00021918,2]
[419322056,1775161849813,-151.0,0.00021918,2]
[419322057,1775161849822,-404.819331,0.00021918,2]
[419322058,1775161849831,-404.819331,0.00021918,2]
[419322059,1775161849841,-151.0,0.00021918,2]
[419322060,1775161849850,-404.819331,0.00021918,2]
[419322061,1775161849859,-151.0,0.00021918,2]
[419322062,1775161849868,-404.819331,0.00021918,2]
[419322063,1775161849878,-151.0,0.00021918,2]
[419322064,1775161849888,-404.819331,0.00021918,2]
[419322065,1775161849897,-151.0,0.00021918,2]
[419322066,1775161849907,-404.819331,0.00021918,2]
[419322067,1775161849916,-151.0,0.00021918,2]
[419322068,1775161849926,-151.0,0.00021918,2]
[419322069,1775161849935,-404.819339,0.00021918,2]
[419322070,1775161849945,-151.0,0.00021918,2]
[419322071,1775161849955,-151.0,0.00021918,2]
[419322072,1775161849964,-151.0,0.00021918,2]
[419322073,1775161849974,-151.0,0.00021918,2]
[419322074,1775161849983,-151.0,0.00021918,2]
[419322075,1775161849992,-151.0,0.00021918,2]
[419322076,1775161850002,-151.0,0.00021918,2]
[419322077,1775161850013,-151.0,0.00021918,2]
[419322078,1775161850024,-151.0,0.00021918,2]
[419322079,1775161850034,-151.0,0.00021918,2]
[419322080,1775161850044,-151.0,0.00021918,2]
[419322081,1775161850054,-151.0,0.00021918,2]
[419322082,1775161850063,-151.0,0.00021918,2]
[419322083,1775161850073,-188.0,0.00021918,2]
[419322084,1775161850083,-288.722628,0.00021918,2]
[419322085,1775161850092,-151.0,0.00021918,2]
[419322086,1775161850102,-151.0,0.00021918,2]
[419322087,1775161850112,-151.0,0.00021918,2]
[419322088,1775161850122,-151.0,0.00021918,2]
[419322089,1775161850131,-151.0,0.00021918,2]
[419322090,1775161850141,-151.0,0.00021918,2]
[419322091,1775161850150,-151.0,0.00021918,2]
[419322092,1775161850160,-1265.612524,0.00021918,2]
[419322093,1775161850169,-151.0,0.00021918,2]
[419322094,1775161850179,-1265.612524,0.00021918,2]
[419322095,1775161850189,-151.0,0.00021918,2]
[419322096,1775161850198,-1265.612524,0.00021918,2]
[419322097,1775161850207,-151.0,0.00021918,2]
[419322098,1775161850217,-1265.612524,0.00021918,2]
[419322099,1775161850226,-151.0,0.00021918,2]
[419322100,1775161850235,-1265.612524,0.00021918,2]
[419322101,1775161850245,-543.647559,0.00021918,2]
[419322102,1775161850254,-151.0,0.00021918,2]
[419322103,1775161850265,-543.647559,0.00021918,2]
[419322104,1775161850276,-1265.612524,0.00021918,2]
[419322105,1775161850287,-248.215861,0.00021918,2]
[419322106,1775161850296,-543.647559,0.00021918,2]
[419322107,1775161850306,-1265.612524,0.00021918,2]
[419322108,1775161850316,-543.647559,0.00021918,2]
[419322109,1775161850325,-1265.612524,0.00021918,2]
[419322110,1775161850335,-543.647559,0.00021918,2]
[419322111,1775161850343,-1265.612524,0.00021918,2]
[419322112,1775161850353,-543.647559,0.00021918,2]
[419322113,1775161850362,-1265.612524,0.00021918,2]
[419322114,1775161850371,-543.647559,0.00021918,2]
[419322115,1775161850380,-1265.612524,0.00021918,2]
[419322116,1775161850390,-543.647559,0.00021918,2]
[419322117,1775161850400,-151.157566,0.00021918,2]
[419322118,1775161850409,-1265.612524,0.00021918,2]
[419322119,1775161850418,-543.647559,0.00021918,2]
[419322120,1775161850428,-1265.612524,0.00021918,2]
[419322121,1775161850437,-543.647559,0.00021918,2]
[419322122,1775161850446,-543.647559,0.00021918,2]
[419322123,1775161850456,-1265.612524,0.00021918,2]
[419322124,1775161850466,-543.647559,0.00021918,2]
[419322125,1775161850477,-1265.612524,0.00021918,2]
[419322126,1775161850486,-543.647559,0.00021918,2]
[419322127,1775161850496,-1265.612524,0.00021918,2]
[419322128,1775161850506,-543.647559,0.00021918,2]
[419322129,1775161850516,-543.647559,0.00021918,2]
[419322130,1775161850526,-1265.612524,0.00021918,2]
[419322131,1775161850536,-543.647559,0.00021918,2]
[419322132,1775161850546,-1265.612524,0.00021918,2]
[419322133,1775161850557,-543.647559,0.00021918,2]
[419322134,1775161850567,-1265.612524,0.00021918,2]
[419322135,1775161850578,-543.647559,0.00021918,2]
[419322136,1775161850589,-1265.612533,0.00021918,2]
[419322137,1775161850600,-543.647559,0.00021918,2]
[419322138,1775161850610,-543.647565,0.00021918,2]
[419322139,1775161850619,-151.0,0.00021918,2]
[419322140,1775161850629,-151.0,0.00021918,2]
[419322141,1775161850639,-151.0,0.00021918,2]
[419322142,1775161850650,-151.0,0.00021918,2]
[419322143,1775161850663,-151.0,0.00021918,2]
[419322144,1775161850673,-151.0,0.00021918,2]
[419322145,1775161850683,-151.0,0.00021918,2]
[419322146,1775161850693,-758.585056,0.00021918,2]
[419322147,1775161850704,-758.585056,0.00021918,2]
[419322148,1775161850713,-758.585056,0.00021918,2]
[419322149,1775161850723,-758.585056,0.00021918,2]
[419322150,1775161850733,-758.585056,0.00021918,2]
[419322151,1775161850745,-151.0,0.00021918,2]
[419322152,1775161850756,-758.585056,0.00021918,2]
[419322153,1775161850766,-151.0,0.00021918,2]
[419322154,1775161850776,-758.585056,0.00021918,2]
[419322155,1775161850787,-291.573684,0.00021918,2]
[419322156,1775161850798,-758.585056,0.00021918,2]
[419322157,1775161850808,-758.585056,0.00021918,2]
[419322158,1775161850819,-758.585056,0.00021918,2]
[419322159,1775161850829,-758.585056,0.00021918,2]
[419322160,1775161850838,-758.585056,0.00021918,2]
[419322161,1775161850848,-758.585056,0.00021918,2]
[419322162,1775161850859,-758.585056,0.00021918,2]
[419322163,1775161850869,-758.585056,0.00021918,2]
[419322164,1775161850879,-758.585056,0.00021918,2]
[419322165,1775161850889,-758.585056,0.00021918,2]
[419322166,1775161850899,-758.585056,0.00021918,2]
[419322167,1775161850908,-758.585056,0.00021918,2]
[419322168,1775161850918,-758.585065,0.00021918,2]
[419322169,1775161850927,-194.129103,0.00021918,2]
[419322170,1775161850937,-194.129103,0.00021918,2]
[419322171,1775161850947,-194.129103,0.00021918,2]
[419322172,1775161850956,-194.129103,0.00021918,2]
[419322173,1775161850966,-194.129103,0.00021918,2]
[419322174,1775161850975,-194.129103,0.00021918,2]
[419322175,1775161850985,-194.129103,0.00021918,2]
[419322176,1775161850994,-194.129103,0.00021918,2]
[419322177,1775161851004,-194.129103,0.00021918,2]
[419322178,1775161851013,-194.129103,0.00021918,2]
[419322179,1775161851023,-194.129103,0.00021918,2]
[419322180,1775161851032,-194.129103,0.00021918,2]
[419322181,1775161851041,-194.129103,0.00021918,2]
[419322182,1775161851051,-194.129103,0.00021918,2]
[419322183,1775161851061,-194.129103,0.00021918,2]
[419322184,1775161851071,-194.129103,0.00021918,2]
[419322185,1775161851081,-194.129103,0.00021918,2]
[419322186,1775161851091,-194.129103,0.00021918,2]
[419322187,1775161851101,-194.129103,0.00021918,2]
[419322188,1775161851110,-194.129106,0.00021918,2]
[419322189,1775161851120,-151.0,0.00021918,2]
[419322190,1775161851129,-151.0,0.00021918,2]
[419322191,1775161851139,-151.0,0.00021918,2]
[419322192,1775161851147,-295.773185,0.00021918,2]
[419322193,1775161851157,-172.706184,0.00021918,2]
[419322194,1775161851166,-194.0,0.00021918,2]
[419322195,1775161851176,-151.0,0.00021918,2]
[419322196,1775161851186,-151.0,0.00021918,2]
[419322197,1775161851196,-151.0,0.00021918,2]
[419322198,1775161851205,-151.0,0.00021918,2]
[419322199,1775161851215,-151.0,0.00021918,2]
[419322200,1775161851224,-151.0,0.00021918,2]
[419322201,1775161851233,-151.0,0.00021918,2]
[419322202,1775161851243,-151.0,0.00021918,2]
[419322203,1775161851252,-151.0,0.00021918,2]
[419322204,1775161851261,-151.0,0.00021918,2]
[419322205,1775161851270,-192.184991,0.00021918,2]
[419322206,1775161851280,-153.911847,0.00021918,2]
[419322207,1775161851289,-151.0,0.00021918,2]
[419322208,1775161851298,-151.0,0.00021918,2]
[419322209,1775161851307,-151.0,0.00021918,2]
[419322210,1775161851317,-278.458553,0.00021918,2]
[419322211,1775161851326,-248.354898,0.00021918,2]
[419322212,1775161851336,-248.354898,0.00021918,2]
[419322213,1775161851346,-248.354898,0.00021918,2]
[419322214,1775161851355,-248.354898,0.00021918,2]
[419322215,1775161851364,-248.354898,0.00021918,2]
[419322216,1775161851374,-248.354898,0.00021918,2]
[419322217,1775161851383,-248.354898,0.00021918,2]
[419322218,1775161851392,-248.354898,0.00021918,2]
[419322219,1775161851402,-248.354898,0.00021918,2]
[419322220,1775161851411,-248.354898,0.00021918,2]
[419322221,1775161851420,-248.354898,0.00021918,2]
[419322222,1775161851429,-248.354898,0.00021918,2]
[419322223,1775161851439,-248.354898,0.00021918,2]
[419322224,1775161851449,-248.354898,0.00021918,2]
[419322225,1775161851458,-248.354898,0.00021918,2]
[419322226,1775161851468,-248.354898,0.00021918,2]
[419322227,1775161851477,-248.354898,0.00021918,2]
[419322228,1775161851486,-248.354898,0.00021918,2]
[419322229,1775161851496,-248.354898,0.00021918,2]
[419322230,1775161851505,-248.354892,0.00021918,2]
[419322231,1775161851515,-163.499642,0.00021918,2]
[419322232,1775161851524,-1027.064535,0.00021918,2]
[419322233,1775161851534,-265.387196,0.00021918,2]
[419322234,1775161851543,-1027.064535,0.00021918,2]
[419322235,1775161851552,-265.387196,0.00021918,2]
[419322236,1775161851562,-1027.064535,0.00021918,2]
[419322237,1775161851571,-265.387196,0.00021918,2]
[419322238,1775161851580,-151.0,0.00021918,2]
[419322239,1775161851589,-1027.064535,0.00021918,2]
[419322240,1775161851599,-265.387196,0.00021918,2]
[419322241,1775161851608,-151.0,0.00021918,2]
[419322242,1775161851618,-223.977241,0.00021918,2]
[419322243,1775161851627,-265.387196,0.00021918,2]
[419322244,1775161851637,-151.0,0.00021918,2]
[419322245,1775161851729,-1027.064535,0.00021918,2]
[419322246,1775161851739,-265.387196,0.00021918,2]
[419322247,1775161851748,-151.0,0.00021918,2]
[419322248,1775161851758,-1027.064535,0.00021918,2]
[419322249,1775161851767,-265.387196,0.00021918,2]
[419322250,1775161851776,-151.0,0.00021918,2]
[419322251,1775161851785,-1027.064535,0.00021918,2]
[419322252,1775161851795,-265.387196,0.00021918,2]
[419322253,1775161851804,-151.0,0.00021918,2]
[419322254,1775161851813,-1027.064535,0.00021918,2]
[419322255,1775161851822,-265.387196,0.00021918,2]
[419322256,1775161851832,-151.0,0.00021918,2]
[419322257,1775161851842,-1027.064535,0.00021918,2]
[419322258,1775161851852,-265.387196,0.00021918,2]
[419322259,1775161851863,-151.0,0.00021918,2]
[419322260,1775161851872,-1027.064535,0.00021918,2]
[419322261,1775161851883,-265.387196,0.00021918,2]
[419322262,1775161851894,-151.0,0.00021918,2]
[419322263,1775161851903,-265.387196,0.00021918,2]
[419322264,1775161851914,-1027.064535,0.00021918,2]
[419322265,1775161851924,-151.0,0.00021918,2]
[419322266,1775161851934,-265.387196,0.00021918,2]
[419322267,1775161851946,-1027.064535,0.00021918,2]
[419322268,1775161851956,-151.0,0.00021918,2]
[419322269,1775161851966,-265.387196,0.00021918,2]
[419322270,1775161851977,-1027.064535,0.00021918,2]
[419322271,1775161851988,-151.0,0.00021918,2]
[419322272,1775161851998,-265.387196,0.00021918,2]
[419322273,1775161852008,-1027.064535,0.00021918,2]
[419322274,1775161852018,-262.166227,0.00021918,2]
[419322275,1775161852028,-265.387196,0.00021918,2]
[419322276,1775161852038,-1027.064535,0.00021918,2]
[419322277,1775161852047,-265.387196,0.00021918,2]
[419322278,1775161852058,-1027.064535,0.00021918,2]
[419322279,1775161852068,-265.387196,0.00021918,2]
[419322280,1775161852077,-1027.064535,0.00021918,2]
[419322281,1775161852085,-1027.064535,0.00021918,2]
[419322282,1775161852095,-265.387196,0.00021918,2]
[419322283,1775161852104,-1027.064535,0.00021918,2]
[419322284,1775161852113,-265.387188,0.00021918,2]
[419322285,1775161852122,-1027.064539,0.00021918,2]
[419322286,1775161852131,-174.99,0.00021918,3]
[419322287,1775161852139,-187.465,0.00021918,4]
[419322288,1775161852147,-378.205,0.00021918,4]
[419322289,1775161852155,-508.84,0.00021918,4]
[419322290,1775161852163,-500.0,0.00021918,2]
[419322291,1775161852172,-257.39484354,0.00021918,2]
[419322292,1775161852182,-200.0,0.00021919,2]
[419322293,1775161852192,-695.5150762,0.0002192,60]
[419322294,1775161852201,-1389.0,0.00021926,2]
[419322295,1775161852212,-1389.0,0.00021939,2]
[419322296,1775161852221,-886.793322,0.00021953,14]
[419322297,1775161852231,-500.9460962,0.00021956,2]
[419322298,1775161852240,-1389.0,0.00021968,2]
[419322299,1775161852250,-500.0,0.00021973,2]
[419322300,1775161852259,-306.13177791,0.00021973,2]
[419322301,1775161852269,-500.0,0.00021973,2]
[419322302,1775161852278,-500.0,0.00021973,2]
[419322303,1775161852287,-500.0,0.00021973,2]
[419322304,1775161852296,-555.0126511,0.00021973,2]
[419322305,1775161852305,-500.0,0.00021973,2]
[419322306,1775161852314,-469.86461885,0.00021973,2]
[419322307,1775161852323,-500.0,0.00021973,2]
[419322308,1775161852332,-500.0,0.00021973,2]
[419322309,1775161852342,-500.0,0.00021973,2]
[419322310,1775161852351,-500.0,0.00021973,2]
[419322311,1775161852360,-500.0,0.00021973,2]
[419322312,1775161852370,-500.0,0.00021973,2]
[419322313,1775161852380,-500.0,0.00021973,2]
[419322314,1775161852389,-500.0,0.00021973,2]
[419322315,1775161852398,-500.0,0.00021973,2]
[419322316,1775161852407,-500.0,0.00021973,2]
[419322317,1775161852417,-500.0,0.00021973,2]
[419322318,1775161852427,-500.0,0.00021973,2]
[419322319,1775161852436,-500.0,0.00021973,2]
[419322320,1775161852445,-500.0,0.00021973,2]
[419322321,1775161852455,-500.0,0.00021973,2]
[419322322,1775161852464,-500.0,0.00021973,2]
[419322323,1775161852474,-500.0,0.00021973,2]
[419322324,1775161852483,-500.0,0.00021973,2]
[419322325,1775161852493,-500.0,0.00021973,2]
[419322326,1775161852502,-500.0,0.00021973,2]
[419322327,1775161852512,-500.0,0.00021973,2]
[419322328,1775161852522,-310.83013256,0.00021973,2]
[419322329,1775161852535,-500.0,0.00021973,2]
[419322330,1775161852546,-500.0,0.00021973,2]
[419322331,1775161852557,-620.9793878,0.00021973,2]
[419322332,1775161852568,-400.0,0.00022,2]
[419322333,1775161852577,-1389.0,0.00022029,2]
[419322334,1775161852587,-2500.0,0.00022069,2]
[419322335,1775161852595,-1389.0,0.00022076,2]
[419322336,1775161852604,-1389.0,0.00022106,2]
[419322337,1775161852614,-1389.0,0.00022113,2]
[419322338,1775161852623,-3709.10266379,0.00022159,2]
[419322339,1775161852632,-1389.0,0.00022308,2]
[419322340,1775161852642,-1000.0,0.00022319,10]
[419322341,1775161852652,-800.0,0.00022387,2]
[419322342,1775161852661,-800.0,0.00022387,2]
[419322343,1775161852670,-800.0,0.00022387,2]
[419322344,1775161852679,-800.0,0.00022387,2]
[419322345,1775161852689,-800.0,0.00022387,2]
[419322346,1775161852698,-800.0,0.00022387,2]
[419322347,1775161852709,-800.0,0.00022387,2]
[419322348,1775161852718,-800.0,0.00022387,2]
[419322349,1775161852729,-800.0,0.00022387,2]
[419322350,1775161852740,-702.0,0.00022387,2]
[419322351,1775161852749,-1035.0,0.00022397,7]
[419322352,1775161852759,-1500.0,0.00022418,2]
[419322353,1775161852768,-695.5150762,0.00022439,60]
[419322354,1775161852777,-1507.48196996,0.00022446,2]
[419322355,1775161852787,-3155.7,0.00022449,2]
[419322356,1775161852797,-1000.0,0.00022521,2]
[419322357,1775161852806,-1000.0,0.00022521,2]
[419322358,1775161852815,-1000.0,0.00022521,2]
[419322359,1775161852825,-250.0,0.00022521,2]
[419322360,1775161852836,-1000.0,0.00022521,2]
[419322361,1775161852845,-801.61121715,0.00022521,2]
[419322362,1775161852854,-1000.0,0.00022521,2]
[419322363,1775161852864,-1000.0,0.00022521,2]
[419322364,1775161852873,-1000.0,0.00022521,2]
[419322365,1775161852883,-1000.0,0.00022521,2]
[419322366,1775161852892,-1000.0,0.00022521,2]
[419322367,1775161852902,-1000.0,0.00022521,2]
[419322368,1775161852912,-1000.0,0.00022521,2]
[419322369,1775161852921,-250.0,0.00022521,2]
[419322370,1775161852931,-1000.0,0.00022521,2]
[419322371,1775161852940,-1000.0,0.00022521,2]
[419322372,1775161852950,-1000.0,0.00022521,2]
[419322373,1775161852961,-1000.0,0.00022521,2]
[419322374,1775161852971,-1000.0,0.00022521,2]
[419322375,1775161852980,-1000.0,0.00022521,2]
[419322376,1775161852990,-1000.0,0.00022521,2]
[419322377,1775161853000,-1000.0,0.00022521,2]
[419322378,1775161853009,-1000.0,0.00022521,2]
[419322379,1775161853019,-1000.0,0.00022521,2]
[419322380,1775161853029,-1000.0,0.00022521,2]
[419322381,1775161853038,-1000.0,0.00022521,2]
[419322382,1775161853047,-1000.0,0.00022521,2]
[419322383,1775161853057,-451.19007218,0.00022521,2]
[419322384,1775161853067,-1000.0,0.00022521,2]
[419322385,1775161853077,-1000.0,0.00022521,2]
[419322386,1775161853087,-250.0,0.00022521,2]
[419322387,1775161853097,-150.5675449,0.00022525,60]
[419322388,1775161853106,-528.0,0.00022557,10]
[419322389,1775161853115,-600.93494217,0.00022698,5]
[419322390,1775161853125,-1200.0,0.0002288,2]
[419322391,1775161853135,-1200.0,0.0002288,2]
[419322392,1775161853144,-1200.0,0.0002288,2]
[419322393,1775161853153,-1200.0,0.0002288,2]
[419322394,1775161853163,-1200.0,0.0002288,2]
[419322395,1775161853173,-1200.0,0.0002288,2]
[419322396,1775161853183,-1200.0,0.0002288,2]
[419322397,1775161853196,-1200.0,0.0002288,2]
[419322398,1775161853207,-1200.0,0.0002288,2]
[419322399,1775161853216,-876.0,0.0002288,2]
[419322400,1775161853226,-208.28119975,0.00022883,60]
[419322401,1775161853238,-214.70695761,0.00022883,60]
[419322402,1775161853248,-249.54508032,0.00022883,60]
[419322403,1775161853258,-379.89019538,0.00022883,60]
[419322404,1775161853267,-1192.0,0.00022887,10]
[419322405,1775161853276,-1050.1,0.000229,2]
[419322406,1775161853287,-201.0,0.000229,2]
[419322407,1775161853296,-623.0,0.000229,2]
[419322408,1775161853305,-152.0,0.000229,2]
[419322409,1775161853315,-203.0,0.00022919,2]
[419322410,1775161853327,-5716.22406498,0.0002294,29]
[419322411,1775161853338,-695.5150762,0.00022957,60]
[419322412,1775161853347,-1047.84218013,0.00022966,2]
[419322413,1775161853359,-270.83333333,0.00023,2]
[419322414,1775161853369,-1035.596333,0.00023,2]
[419322415,1775161853379,-3155.7,0.00023048,2]
[419322416,1775161853388,-1500.0,0.00023068,2]
[419322417,1775161853398,-1500.0,0.00023068,2]
[419322418,1775161853407,-1500.0,0.00023068,2]
[419322419,1775161853416,-350.0,0.00023068,2]
[419322420,1775161853425,-1500.0,0.00023068,2]
[419322421,1775161853435,-902.40661062,0.00023068,2]
[419322422,1775161853444,-1500.0,0.00023068,2]
[419322423,1775161853455,-1500.0,0.00023068,2]
[419322424,1775161853464,-1500.0,0.00023068,2]
[419322425,1775161853473,-1500.0,0.00023068,2]
[419322426,1775161853483,-1500.0,0.00023068,2]
[419322427,1775161853492,-1500.0,0.00023068,2]
[419322428,1775161853501,-350.0,0.00023068,2]
[419322429,1775161853511,-1500.0,0.00023068,2]
[419322430,1775161853520,-1500.0,0.00023068,2]
[419322431,1775161853529,-1158.36895392,0.00023068,2]
[419322432,1775161853539,-1500.0,0.00023068,2]
[419322433,1775161853549,-1500.0,0.00023068,2]
[419322434,1775161853559,-1500.0,0.00023068,2]
[419322435,1775161853568,-1500.0,0.00023068,2]
[419322436,1775161853578,-1500.0,0.00023068,2]
[419322437,1775161853587,-1637.58837842,0.00023068,2]
[419322438,1775161853596,-1500.0,0.00023068,2]
[419322439,1775161853605,-1500.0,0.00023068,2]
[419322440,1775161853615,-1500.0,0.00023068,2]
[419322441,1775161853623,-1500.0,0.00023068,2]
[419322442,1775161853633,-691.16719723,0.00023068,2]
[419322443,1775161853643,-1500.0,0.00023068,2]
[419322444,1775161853652,-350.0,0.00023068,2]
[419322445,1775161853662,-614.599133,0.00023129,2]
[419322446,1775161853671,-250.0,0.00023209,4]
[419322447,1775161853680,-1405.0,0.00023374,2]
[419322448,1775161853689,-2203.0,0.00023374,2]
[419322449,1775161853698,-184.0,0.00023374,2]
[419322450,1775161853786,-440.0,0.00023374,2]
[419322451,1775161853795,-324.8899299,0.00023439,2]
[419322452,1775161853805,-212.0,0.00023475,60]
[419322453,1775161853816,-695.5150762,0.00023475,60]
[419322454,1775161853826,-3823.42356522,0.000235,2]
[419322455,1775161853836,-1035.0,0.00023599,7]
[419322456,1775161853846,-2000.0,0.00023616,2]
[419322457,1775161853855,-2000.0,0.00023616,2]
[419322458,1775161853865,-1163.77284296,0.00023616,2]
[419322459,1775161853876,-150.71900243,0.00023616,2]
[419322460,1775161853886,-647.11209464,0.00023616,2]
[419322461,1775161853896,-1573.41178906,0.00023616,2]
[419322462,1775161853905,-1078.429046,0.00023616,2]
[419322463,1775161853915,-2000.0,0.00023616,2]
[419322464,1775161853925,-500.0,0.00023616,2]
[419322465,1775161853934,-501.52265838,0.00023616,2]
[419322466,1775161853944,-1503.04801135,0.00023616,2]
[419322467,1775161853954,-450.0,0.00023616,2]
[419322468,1775161853964,-2000.0,0.00023616,2]
[419322469,1775161853973,-501.91505308,0.00023616,2]
[419322470,1775161853983,-2000.0,0.00023616,2]
[419322471,1775161853992,-980.77935112,0.00023616,2]
[419322472,1775161854003,-2000.0,0.00023616,2]
[419322473,1775161854013,-2000.0,0.00023616,2]
[419322474,1775161854023,-1200.69655499,0.00023616,2]
[419322475,1775161854281,-5000.0,0.0001814,2]
[419322476,1775161854291,-1331.359475,0.000185,2]
[419322477,1775161854300,-160.0,0.0001909,7]
[419322478,1775161854310,-4254.903431,0.0001909,7]
[419322479,1775161854319,-607.61548944,0.0001909,7]
[419322480,1775161854331,-1042.12160456,0.0001909,7]
[419322481,1775161854345,-413.28111566,0.0001909,7]
[419322482,1775161854357,-6286.78865334,0.0001909,7]
[419322483,1775161854368,-194.77,0.00022456,2]
[419322484,1775161854377,-799.30344501,0.00023616,2]
[419322485,1775161854387,-2000.0,0.00023616,2]
[419322486,1775161854396,-2000.0,0.00023616,2]
[419322487,1775161854406,-2000.0,0.00023616,2]
[419322488,1775161854415,-1348.34455039,0.00023616,2]
[419322489,1775161854427,-651.65544961,0.00023616,2]
[419322490,1775161854436,-1677.52963907,0.00023616,2]
[419322506,1775163032099,-490.57899851,0.00013159,2]
[419322509,1775163032153,-4509.42100149,0.00013159,2]
[419322511,1775163032163,-609.0,0.00013292,2]
[419322513,1775163032173,-1000.0,0.00013699,2]
[419322515,1775163032182,-500.0,0.00014984,2]
[419322517,1775163032191,-500.0,0.00015773,2]
[419322519,1775163032200,-500.0,0.00016603,2]
[419322521,1775163032210,-500.0,0.0001747,2]
[419322523,1775163032219,-2487.15318209,0.0001747,2]
[419322525,1775163032228,-500.0,0.00017477,2]
[419322527,1775163032237,-999.753,0.00017868,2]
[419322529,1775163032247,-2054.769,0.00017868,2]
[419322531,1775163032256,-184.0,0.00017868,2]
[419322533,1775163032265,-440.0,0.00017868,2]
[419322535,1775163032274,-1944.79417413,0.00018018,2]
[419322537,1775163032284,-500.0,0.00018351,2]
[419322539,1775163032293,-500.0,0.00019268,2]
[419322540,1775163032303,-1051.9,0.00019341,2]
[419322541,1775163032313,-160.0,0.00019745,2]
[419322542,1775163032322,-1051.9,0.00019952,2]
[419322544,1775163032331,-158.695771,0.00020022,2]
[419322546,1775163032341,-500.0,0.00020074,2]
[419322547,1775163032350,-500.0,0.00020074,2]
[419322548,1775163032359,-500.0,0.00020074,2]
[419322549,1775163032369,-500.0,0.00020074,2]
[419322550,1775163032378,-500.0,0.00020074,2]
[419322551,1775163032387,-500.0,0.00020074,2]
[419322552,1775163032398,-508.78533862,0.00020074,2]
[419322553,1775163032408,-326.88606441,0.00020232,2]
[419322554,1775163032417,-1051.9,0.00020562,2]
[419322555,1775163032426,-166.029,0.00020751,2]
[419322556,1775163032436,-440.0,0.00020868,2]
[419322557,1775163032445,-184.0,0.00020868,2]
[419322558,1775163032454,-1051.9,0.00021172,2]
[419322559,1775163032464,-1051.9,0.00021782,2]
[419322560,1775163032474,-155.0,0.00022,2]
[419322561,1775163032483,-171.0,0.00022,2]
[419322562,1775163032493,-530.0,0.00022,2]
[419322563,1775163032502,-153.0,0.00022,2]
[419322564,1775163032511,-1051.9,0.00022393,2]
[419322566,1775163032520,-1523.17325033,0.00022835,2]
[419322567,1775163032530,-168.0,0.00022934,2]
[419322568,1775163032540,-155.0,0.00023,2]
[419322569,1775163032550,-171.0,0.00023,2]
[419322570,1775163032559,-530.0,0.00023,2]
[419322571,1775163032569,-154.0,0.00023,2]
[419322572,1775163032579,-270.83333333,0.00023,2]
[419322573,1775163032588,-1051.9,0.00023003,2]
[419322574,1775163032600,-181.3845844,0.00023057,2]
[419322575,1775163032609,-800.0,0.00023086,2]
[419322576,1775163032619,-1572.33133456,0.00023144,2]
[419322577,1775163032628,-264.22244466,0.00023144,2]
[419322578,1775163032638,-595.67948762,0.00023416,2]
[419322579,1775163032647,-523.34,0.00023506,10]
[419322580,1775163032656,-499.79333429,0.00023515,2]
[419322581,1775163032666,-500.0,0.00023515,2]
[419322582,1775163032675,-288.90401737,0.00023515,2]
[419322583,1775163032684,-579.84144298,0.00023515,2]
[419322584,1775163032694,-500.0,0.00023515,2]
[419322585,1775163032703,-394.35198679,0.00023515,2]
[419322586,1775163032713,-26751.86664149,0.00023516,2]
[419322587,1775163032725,-4927.89061857,0.00023516,2]
[419322588,1775163032736,-3326.88606441,0.00023516,2]
[419322702,1775163040947,-1490.33560924,0.00022913,2]